[Event "*** Titled Tuesday Blitz"]
[Site "Chess.com"]
[Date "2020.05.19"]
[Round "5"]
[White "santosalberto1987"]
[Black "DenLaz"]
[Result "0-1"]
[WhiteElo "2474"]
[BlackElo "2673"]
[TimeControl "180+1"]
[EndTime "12:58:41 PDT"]
[Termination "DenLaz won by resignation"]

1. e4 {[%clk 0:03:00]} 1... e5 {[%clk 0:02:46.2]} 2. Nf3 {[%clk 0:02:59.8]} 2...
Nc6 {[%clk 0:02:44.9]} 3. Bc4 {[%clk 0:03:00.2]} 3... Bc5 {[%clk 0:02:44]} 4. c3
{[%clk 0:03:00.1]} 4... Nf6 {[%clk 0:02:44.2]} 5. d3 {[%clk 0:03:00.3]} 5... d6
{[%clk 0:02:44]} 6. O-O {[%clk 0:02:58]} 6... a6 {[%clk 0:02:44]} 7. a4 {[%clk
0:02:56.9]} 7... h6 {[%clk 0:02:43.8]} 8. Nbd2 {[%clk 0:02:54.1]} 8... O-O
{[%clk 0:02:40.5]} 9. h3 {[%clk 0:02:53.8]} 9... Be6 {[%clk 0:02:39.6]} 10. Ba2
{[%clk 0:02:53.1]} 10... Re8 {[%clk 0:02:37.7]} 11. Re1 {[%clk 0:02:53.1]} 11...
Ba7 {[%clk 0:02:34.6]} 12. Nf1 {[%clk 0:02:49.2]} 12... d5 {[%clk 0:02:30.2]}
13. Qe2 {[%clk 0:02:38.3]} 13... Qd7 {[%clk 0:02:25.5]} 14. Ng3 {[%clk
0:02:37.2]} 14... Rad8 {[%clk 0:02:24.6]} 15. Nh4 {[%clk 0:02:27.8]} 15... dxe4
{[%clk 0:02:20.2]} 16. dxe4 {[%clk 0:02:28.7]} 16... Bxa2 {[%clk 0:02:19.3]} 17.
Rxa2 {[%clk 0:02:29.6]} 17... Qd3 {[%clk 0:02:19.3]} 18. Qxd3 {[%clk 0:02:26.3]}
18... Rxd3 {[%clk 0:02:20.2]} 19. Nhf5 {[%clk 0:02:20]} 19... Red8 {[%clk
0:02:06.2]} 20. Be3 {[%clk 0:02:09.5]} 20... Bxe3 {[%clk 0:01:49.1]} 21. Nxe3
{[%clk 0:02:10.4]} 21... a5 {[%clk 0:01:49.5]} 22. Nc4 {[%clk 0:02:03.9]} 22...
b6 {[%clk 0:01:42.8]} 23. Raa1 {[%clk 0:01:59.9]} 23... Nd7 {[%clk 0:01:42.3]}
24. Kf1 {[%clk 0:01:18.9]} 24... Nc5 {[%clk 0:01:38.3]} 25. Ke2 {[%clk
0:01:19.2]} 25... g6 {[%clk 0:01:30.9]} 26. f3 {[%clk 0:01:16.5]} 26... Nb3
{[%clk 0:01:16.5]} 27. Ra3 {[%clk 0:00:56.2]} 27... Nd2 {[%clk 0:01:06.9]} 28.
Rd1 {[%clk 0:00:48.1]} 28... Nxc4 {[%clk 0:00:44.2]} 29. Rxd3 {[%clk 0:00:49]}
29... Nxa3 {[%clk 0:00:39.5]} 30. bxa3 {[%clk 0:00:43.5]} 30... Kf8 {[%clk
0:00:38.8]} 31. Rxd8+ {[%clk 0:00:41.7]} 31... Nxd8 {[%clk 0:00:39.7]} 32. Kd3
{[%clk 0:00:42.6]} 32... Ke7 {[%clk 0:00:38.1]} 33. Nf1 {[%clk 0:00:40.5]} 33...
Kd6 {[%clk 0:00:33]} 34. Kc4 {[%clk 0:00:39.4]} 34... Ne6 {[%clk 0:00:26]} 35.
Kb5 {[%clk 0:00:38.2]} 35... Nf4 {[%clk 0:00:25.9]} 36. Ne3 {[%clk 0:00:38.5]}
36... Ne2 {[%clk 0:00:25.3]} 37. Nd1 {[%clk 0:00:31.6]} 37... f6 {[%clk
0:00:24.8]} 38. Kc4 {[%clk 0:00:28.2]} 38... h5 {[%clk 0:00:24.1]} 39. h4 {[%clk
0:00:24.9]} 39... g5 {[%clk 0:00:23.8]} 40. hxg5 {[%clk 0:00:23.6]} 40... fxg5
{[%clk 0:00:24.7]} 41. Ne3 {[%clk 0:00:22.7]} 41... h4 {[%clk 0:00:22.3]} 42.
Nf5+ {[%clk 0:00:20.8]} 42... Ke6 {[%clk 0:00:20.6]} 43. Ne3 {[%clk 0:00:19.7]}
43... c6 {[%clk 0:00:20.9]} 44. Kd3 {[%clk 0:00:13]} 44... Nf4+ {[%clk
0:00:20.9]} 45. Kd2 {[%clk 0:00:13.9]} 45... Kd6 {[%clk 0:00:20.4]} 46. Ke1
{[%clk 0:00:12]} 46... Kc5 {[%clk 0:00:18.7]} 47. Kf2 {[%clk 0:00:12.3]} 47...
Nd3+ {[%clk 0:00:17.3]} 48. Kg1 {[%clk 0:00:12.6]} 48... Nb2 {[%clk 0:00:17.3]}
49. Kh2 {[%clk 0:00:13]} 49... Nxa4 {[%clk 0:00:17.6]} 50. Kh3 {[%clk
0:00:13.9]} 50... Nxc3 {[%clk 0:00:17.8]} 51. Kg4 {[%clk 0:00:14.8]} 51... b5
{[%clk 0:00:17.6]} 52. Kxg5 {[%clk 0:00:15]} 52... b4 {[%clk 0:00:18]} 53. axb4+
{[%clk 0:00:15]} 53... axb4 {[%clk 0:00:18.9]} 54. Kxh4 {[%clk 0:00:15.4]} 54...
b3 {[%clk 0:00:19.3]} 55. g4 {[%clk 0:00:13.2]} 55... b2 {[%clk 0:00:18.7]} 56.
Kg5 {[%clk 0:00:13.3]} 56... b1=Q {[%clk 0:00:18.8]} 57. Kf5 {[%clk 0:00:14.2]}
57... Qc1 {[%clk 0:00:18.1]} 58. Ng2 {[%clk 0:00:13.9]} 58... Qf1 {[%clk
0:00:16.3]} 59. Nh4 {[%clk 0:00:13.7]} 59... Ne2 {[%clk 0:00:15.7]} 60. Kxe5
{[%clk 0:00:11.1]} 60... Qf2 {[%clk 0:00:16.2]} 61. Nf5 {[%clk 0:00:10.3]} 61...
Qxf3 {[%clk 0:00:14.7]} 62. g5 {[%clk 0:00:10.6]} 62... Qf4+ {[%clk 0:00:13.7]}
63. Kf6 {[%clk 0:00:10.5]} 63... Qxe4 {[%clk 0:00:14.2]} 64. g6 {[%clk
0:00:11.4]} 64... Nf4 {[%clk 0:00:14.1]} 65. g7 {[%clk 0:00:11.4]} 65... Nh5+
{[%clk 0:00:14.6]} 66. Kg5 {[%clk 0:00:12.1]} 66... Nxg7 {[%clk 0:00:15.1]} 67.
Nxg7 {[%clk 0:00:12.5]} 67... Qe5+ {[%clk 0:00:15.5]} 68. Nf5 {[%clk 0:00:13.4]}
68... Kb4 {[%clk 0:00:15.7]} 69. Kg4 {[%clk 0:00:13.8]} 69... c5 {[%clk
0:00:16.2]} 70. Ng3 {[%clk 0:00:14.4]} 70... c4 {[%clk 0:00:16]} 0-1

[Event "*** Titled Tuesday Blitz"]
[Site "Chess.com"]
[Date "2020.05.19"]
[Round "5"]
[White "CakeinSpace2002"]
[Black "tufferguy"]
[Result "1-0"]
[WhiteElo "2222"]
[BlackElo "2349"]
[TimeControl "180+1"]
[EndTime "12:58:41 PDT"]
[Termination "CakeinSpace2002 won by checkmate"]

1. Nf3 {[%clk 0:03:00.6]} 1... d5 {[%clk 0:02:57]} 2. g3 {[%clk 0:03:01.5]} 2...
c6 {[%clk 0:02:55.3]} 3. Bg2 {[%clk 0:03:01.9]} 3... Bg4 {[%clk 0:02:54.9]} 4.
O-O {[%clk 0:03:02.8]} 4... Nf6 {[%clk 0:02:53.4]} 5. d3 {[%clk 0:03:02]} 5...
e6 {[%clk 0:02:52.2]} 6. Qe1 {[%clk 0:03:02.1]} 6... Be7 {[%clk 0:02:43.2]} 7.
e4 {[%clk 0:03:00.4]} 7... O-O {[%clk 0:02:42.8]} 8. h3 {[%clk 0:03:00.1]} 8...
Bh5 {[%clk 0:02:29.2]} 9. Nbd2 {[%clk 0:02:58.6]} 9... Nbd7 {[%clk 0:02:28]} 10.
b3 {[%clk 0:02:46]} 10... Qb6 {[%clk 0:01:37.8]} 11. Bb2 {[%clk 0:02:42.9]}
11... Rad8 {[%clk 0:01:33.9]} 12. Nh4 {[%clk 0:02:40]} 12... dxe4 {[%clk
0:01:29.1]} 13. dxe4 {[%clk 0:02:38.3]} 13... Bb4 {[%clk 0:01:22.2]} 14. a3
{[%clk 0:02:18.6]} 14... Be7 {[%clk 0:01:16.2]} 15. Kh2 {[%clk 0:02:14.9]} 15...
Nc5 {[%clk 0:01:12.1]} 16. g4 {[%clk 0:01:57.6]} 16... Bg6 {[%clk 0:00:47.6]}
17. Nxg6 {[%clk 0:01:56.6]} 17... fxg6 {[%clk 0:00:47.2]} 18. f4 {[%clk
0:01:54.5]} 18... Qc7 {[%clk 0:00:36.3]} 19. Kh1 {[%clk 0:01:40.6]} 19... Nfd7
{[%clk 0:00:31.9]} 20. Qe3 {[%clk 0:01:32.7]} 20... Nb6 {[%clk 0:00:27.1]} 21.
Rad1 {[%clk 0:01:20.4]} 21... Bd6 {[%clk 0:00:25.9]} 22. e5 {[%clk 0:01:19.3]}
22... Be7 {[%clk 0:00:24.8]} 23. Ne4 {[%clk 0:01:19]} 23... Nd5 {[%clk 0:00:20]}
24. Qg3 {[%clk 0:01:15.2]} 24... Nxe4 {[%clk 0:00:18.2]} 25. Bxe4 {[%clk
0:01:16.1]} 25... Qb6 {[%clk 0:00:18.5]} 26. Bd4 {[%clk 0:01:10.6]} 26... Qa6
{[%clk 0:00:16.2]} 27. c4 {[%clk 0:01:10.1]} 27... Nc7 {[%clk 0:00:14.5]} 28. a4
{[%clk 0:01:09.3]} 28... c5 {[%clk 0:00:12]} 29. Bb2 {[%clk 0:01:04.4]} 29...
Qb6 {[%clk 0:00:12.3]} 30. Bc2 {[%clk 0:00:53.6]} 30... Na6 {[%clk 0:00:12.2]}
31. Bc3 {[%clk 0:00:49]} 31... Nb4 {[%clk 0:00:11.9]} 32. Bxb4 {[%clk 0:00:49]}
32... Qxb4 {[%clk 0:00:12.4]} 33. Qe3 {[%clk 0:00:47]} 33... Qb6 {[%clk
0:00:10.1]} 34. Qe4 {[%clk 0:00:45.5]} 34... Rxd1 {[%clk 0:00:06.3]} 35. Rxd1
{[%clk 0:00:45.3]} 35... Rd8 {[%clk 0:00:07.2]} 36. Rxd8+ {[%clk 0:00:45.2]}
36... Qxd8 {[%clk 0:00:08.1]} 37. Qd3 {[%clk 0:00:41.8]} 37... Qxd3 {[%clk
0:00:08]} 38. Bxd3 {[%clk 0:00:42.7]} 38... b6 {[%clk 0:00:08.6]} 39. Kg2 {[%clk
0:00:42.5]} 39... Bh4 {[%clk 0:00:08.7]} 40. Kf3 {[%clk 0:00:42.4]} 40... Be1
{[%clk 0:00:08.6]} 41. Be4 {[%clk 0:00:42]} 41... Kf7 {[%clk 0:00:08.5]} 42. Bc6
{[%clk 0:00:41.9]} 42... Ke7 {[%clk 0:00:08.4]} 43. Ke4 {[%clk 0:00:41.9]} 43...
Bc3 {[%clk 0:00:08.5]} 44. f5 {[%clk 0:00:38.8]} 44... exf5+ {[%clk 0:00:07.8]}
45. gxf5 {[%clk 0:00:39.7]} 45... gxf5+ {[%clk 0:00:08.2]} 46. Kxf5 {[%clk
0:00:40.5]} 46... g6+ {[%clk 0:00:09.1]} 47. Ke4 {[%clk 0:00:39.9]} 47... Ke6
{[%clk 0:00:09.5]} 48. Bb7 {[%clk 0:00:38.9]} 48... Bxe5 {[%clk 0:00:08.6]} 49.
Bc8+ {[%clk 0:00:38.3]} 49... Kf6 {[%clk 0:00:09.5]} 50. Bg4 {[%clk 0:00:37.2]}
50... h5 {[%clk 0:00:08.7]} 51. Bf3 {[%clk 0:00:36.5]} 51... Bc7 {[%clk
0:00:09.6]} 52. Kd5 {[%clk 0:00:36.2]} 52... Kg5 {[%clk 0:00:10.4]} 53. Kc6
{[%clk 0:00:34.3]} 53... Be5 {[%clk 0:00:08.6]} 54. Bd5 {[%clk 0:00:32.7]} 54...
Kf4 {[%clk 0:00:09.5]} 55. Kb7 {[%clk 0:00:32.4]} 55... g5 {[%clk 0:00:08.9]}
56. Kxa7 {[%clk 0:00:30.9]} 56... g4 {[%clk 0:00:08.8]} 57. hxg4 {[%clk
0:00:30.7]} 57... hxg4 {[%clk 0:00:08.4]} 58. Kxb6 {[%clk 0:00:30.2]} 58... Bd6
{[%clk 0:00:07.3]} 59. a5 {[%clk 0:00:29.4]} 59... g3 {[%clk 0:00:07.7]} 60. a6
{[%clk 0:00:29.3]} 60... Bb8 {[%clk 0:00:06.3]} 61. Kb7 {[%clk 0:00:29.1]} 61...
Ke3 {[%clk 0:00:03.8]} 62. Kxb8 {[%clk 0:00:28.1]} 62... Kd2 {[%clk 0:00:04.7]}
63. a7 {[%clk 0:00:28]} 63... Kc3 {[%clk 0:00:05.6]} 64. a8=Q {[%clk 0:00:28]}
64... Kb4 {[%clk 0:00:06.2]} 65. Qa4+ {[%clk 0:00:27.7]} 65... Kc3 {[%clk
0:00:04.7]} 66. Qe8 {[%clk 0:00:28.6]} 66... Kd4 {[%clk 0:00:05.5]} 67. Qg6
{[%clk 0:00:28.4]} 67... Kc3 {[%clk 0:00:06.4]} 68. Qxg3+ {[%clk 0:00:28.7]}
68... Kb4 {[%clk 0:00:07.3]} 69. Qc7 {[%clk 0:00:27.6]} 69... Ka3 {[%clk
0:00:08.2]} 70. Qxc5+ {[%clk 0:00:27.9]} 70... Kxb3 {[%clk 0:00:07.5]} 71. Bh1
{[%clk 0:00:28.5]} 71... Kc3 {[%clk 0:00:08.4]} 72. Qb5 {[%clk 0:00:28.6]} 72...
Kd3 {[%clk 0:00:09.3]} 73. Ka7 {[%clk 0:00:28.9]} 73... Kd4 {[%clk 0:00:10.2]}
74. c5 {[%clk 0:00:29.6]} 74... Ke5 {[%clk 0:00:11.1]} 75. c6+ {[%clk
0:00:29.8]} 75... Kd6 {[%clk 0:00:12]} 76. Qd5+ {[%clk 0:00:29.9]} 76... Kc7
{[%clk 0:00:12.1]} 77. Qd7# {[%clk 0:00:30]} 1-0

[Event "*** Titled Tuesday Blitz"]
[Site "Chess.com"]
[Date "2020.05.19"]
[Round "5"]
[White "Tapuah"]
[Black "albano87"]
[Result "1-0"]
[WhiteElo "2791"]
[BlackElo "2348"]
[TimeControl "180+1"]
[EndTime "12:58:43 PDT"]
[Termination "Tapuah won on time"]

1. e4 {[%clk 0:03:00.9]} 1... c5 {[%clk 0:02:59.8]} 2. Nf3 {[%clk 0:03:00.1]}
2... Nc6 {[%clk 0:03:00]} 3. Bb5 {[%clk 0:02:58.4]} 3... d6 {[%clk 0:02:59.8]}
4. c3 {[%clk 0:02:56.5]} 4... Bd7 {[%clk 0:02:59.1]} 5. d4 {[%clk 0:02:55.6]}
5... cxd4 {[%clk 0:02:55.6]} 6. cxd4 {[%clk 0:02:55.1]} 6... a6 {[%clk
0:02:56.1]} 7. Bxc6 {[%clk 0:02:42.1]} 7... Bxc6 {[%clk 0:02:57]} 8. Nc3 {[%clk
0:02:41]} 8... Nf6 {[%clk 0:02:57.1]} 9. d5 {[%clk 0:02:39.8]} 9... Bd7 {[%clk
0:02:56.8]} 10. Bg5 {[%clk 0:02:38.6]} 10... Ng4 {[%clk 0:02:51.8]} 11. O-O
{[%clk 0:02:36.7]} 11... h6 {[%clk 0:02:50.6]} 12. Bh4 {[%clk 0:02:35.1]} 12...
g5 {[%clk 0:02:49.8]} 13. Bg3 {[%clk 0:02:35.2]} 13... Bg7 {[%clk 0:02:49.5]}
14. Nd4 {[%clk 0:02:31.1]} 14... O-O {[%clk 0:02:43.3]} 15. Nf5 {[%clk
0:02:22.1]} 15... Bxf5 {[%clk 0:02:41.1]} 16. exf5 {[%clk 0:02:22.4]} 16... Ne5
{[%clk 0:02:39.2]} 17. f4 {[%clk 0:02:19.8]} 17... Nc4 {[%clk 0:02:35.3]} 18.
fxg5 {[%clk 0:02:17.6]} 18... hxg5 {[%clk 0:02:22.8]} 19. Qh5 {[%clk 0:02:13.2]}
19... Bd4+ {[%clk 0:01:59.2]} 20. Kh1 {[%clk 0:02:11.7]} 20... f6 {[%clk
0:01:59.1]} 21. Qg6+ {[%clk 0:02:03.5]} 21... Kh8 {[%clk 0:01:57.1]} 22. Bxd6
{[%clk 0:01:40.5]} 22... Qe8 {[%clk 0:01:45.9]} 23. Qh6+ {[%clk 0:01:08.8]}
23... Kg8 {[%clk 0:01:45.4]} 24. Bg3 {[%clk 0:01:09.4]} 24... Nxb2 {[%clk
0:01:22.7]} 25. Ne4 {[%clk 0:01:08.2]} 25... Nc4 {[%clk 0:01:17.8]} 26. Rad1
{[%clk 0:00:52.9]} 26... Ne3 {[%clk 0:01:15.1]} 27. Rxd4 {[%clk 0:00:52.6]}
27... Nxf1 {[%clk 0:01:15.3]} 28. Bf2 {[%clk 0:00:50]} 28... Rf7 {[%clk
0:01:06]} 29. Rd1 {[%clk 0:00:46.2]} 29... Rh7 {[%clk 0:00:55.3]} 30. Qg6+
{[%clk 0:00:45.3]} 30... Qxg6 {[%clk 0:00:41.3]} 31. fxg6 {[%clk 0:00:45.6]}
31... Rxh2+ {[%clk 0:00:42]} 32. Kg1 {[%clk 0:00:45.9]} 32... Rh6 {[%clk
0:00:42.5]} 33. Kxf1 {[%clk 0:00:41.6]} 33... Rxg6 {[%clk 0:00:42.9]} 34. d6
{[%clk 0:00:40.6]} 34... Rd8 {[%clk 0:00:26.5]} 35. Rb1 {[%clk 0:00:27.9]} 35...
Rd7 {[%clk 0:00:16.7]} 36. dxe7 {[%clk 0:00:18.3]} 36... Rxe7 {[%clk 0:00:16.3]}
37. Nd6 {[%clk 0:00:18]} 37... b5 {[%clk 0:00:15.1]} 38. Rc1 {[%clk 0:00:17.5]}
38... Rh6 {[%clk 0:00:10]} 39. Rc8+ {[%clk 0:00:15.6]} 39... Kh7 {[%clk
0:00:10.2]} 40. Bd4 {[%clk 0:00:13.8]} 40... Rh1+ {[%clk 0:00:08.8]} 41. Kf2
{[%clk 0:00:13.5]} 41... Rd1 {[%clk 0:00:09.1]} 42. Bxf6 {[%clk 0:00:09.9]}
42... Rd7 {[%clk 0:00:09]} 43. Ne4 {[%clk 0:00:08.7]} 43... Rf7 {[%clk
0:00:08.1]} 44. Nxg5+ {[%clk 0:00:07.6]} 44... Kg6 {[%clk 0:00:08]} 45. Nxf7
{[%clk 0:00:08.3]} 45... Kxf6 {[%clk 0:00:07.8]} 46. Nh6 {[%clk 0:00:07.9]}
46... Rd2+ {[%clk 0:00:07.5]} 47. Kf3 {[%clk 0:00:08.2]} 47... Rxa2 {[%clk
0:00:07.9]} 48. Ng4+ {[%clk 0:00:08.2]} 48... Kg5 {[%clk 0:00:08.3]} 49. Rc5+
{[%clk 0:00:07.3]} 49... Kg6 {[%clk 0:00:08.2]} 50. Ne5+ {[%clk 0:00:06]} 50...
Kf6 {[%clk 0:00:06.8]} 51. g4 {[%clk 0:00:06.1]} 51... b4 {[%clk 0:00:06.2]} 52.
Kf4 {[%clk 0:00:06.2]} 52... Rf2+ {[%clk 0:00:05.5]} 53. Nf3 {[%clk 0:00:05.1]}
53... b3 {[%clk 0:00:04.9]} 54. Rc6+ {[%clk 0:00:05.1]} 54... Kg7 {[%clk
0:00:03.8]} 55. Rxa6 {[%clk 0:00:05]} 55... b2 {[%clk 0:00:04.3]} 56. Rb6 {[%clk
0:00:05.2]} 56... Kf7 {[%clk 0:00:04.5]} 57. g5 {[%clk 0:00:05.3]} 57... Rg2
{[%clk 0:00:04.3]} 58. Kf5 {[%clk 0:00:05.1]} 58... Rf2 {[%clk 0:00:04.1]} 59.
Rb7+ {[%clk 0:00:05.2]} 59... Kg8 {[%clk 0:00:04]} 60. Kf4 {[%clk 0:00:04.9]}
60... Kf8 {[%clk 0:00:04.4]} 61. g6 {[%clk 0:00:04.8]} 61... Kg8 {[%clk
0:00:04.4]} 62. Kg4 {[%clk 0:00:04.6]} 62... Rg2+ {[%clk 0:00:04.2]} 63. Kh5
{[%clk 0:00:04.5]} 63... Rf2 {[%clk 0:00:04.5]} 64. Nh4 {[%clk 0:00:03.3]} 64...
Rh2 {[%clk 0:00:03.3]} 65. Kg5 {[%clk 0:00:03.4]} 65... Rf2 {[%clk 0:00:02.1]}
66. Kh6 {[%clk 0:00:03.4]} 1-0

[Event "*** Titled Tuesday Blitz"]
[Site "Chess.com"]
[Date "2020.05.19"]
[Round "5"]
[White "Shield12"]
[Black "Hikaru"]
[Result "0-1"]
[WhiteElo "2822"]
[BlackElo "3191"]
[TimeControl "180+1"]
[EndTime "12:58:47 PDT"]
[Termination "Hikaru won by resignation"]

1. e4 {[%clk 0:03:00.9]} 1... c6 {[%clk 0:02:56.1]} 2. d4 {[%clk 0:03:00.9]}
2... d5 {[%clk 0:02:57]} 3. exd5 {[%clk 0:03:01.3]} 3... cxd5 {[%clk 0:02:55.2]}
4. Bd3 {[%clk 0:03:01.3]} 4... Nf6 {[%clk 0:02:50.6]} 5. c3 {[%clk 0:03:01]}
5... Nc6 {[%clk 0:02:46.5]} 6. h3 {[%clk 0:03:00.7]} 6... e5 {[%clk 0:02:27.5]}
7. dxe5 {[%clk 0:02:58.5]} 7... Nxe5 {[%clk 0:02:28.4]} 8. Nf3 {[%clk
0:02:58.7]} 8... Nxd3+ {[%clk 0:02:27.3]} 9. Qxd3 {[%clk 0:02:59.6]} 9... h6
{[%clk 0:02:27.4]} 10. O-O {[%clk 0:02:57.7]} 10... Be7 {[%clk 0:02:27.4]} 11.
Be3 {[%clk 0:02:49.9]} 11... O-O {[%clk 0:02:25.6]} 12. Nbd2 {[%clk 0:02:49.9]}
12... Be6 {[%clk 0:02:25.1]} 13. Nb3 {[%clk 0:02:48.8]} 13... Qc7 {[%clk
0:02:12.7]} 14. Rfe1 {[%clk 0:02:46.9]} 14... Rfe8 {[%clk 0:02:09.9]} 15. Bd4
{[%clk 0:02:43.8]} 15... Ne4 {[%clk 0:02:05]} 16. Be5 {[%clk 0:02:40]} 16... Qb6
{[%clk 0:02:02.7]} 17. Bd4 {[%clk 0:02:36.2]} 17... Qc7 {[%clk 0:02:01.6]} 18.
Be5 {[%clk 0:02:33.1]} 18... Qc8 {[%clk 0:01:49.8]} 19. Nfd4 {[%clk 0:02:27.7]}
19... Bh4 {[%clk 0:01:43.5]} 20. Bg3 {[%clk 0:02:01.7]} 20... Nxg3 {[%clk
0:01:33.5]} 21. fxg3 {[%clk 0:02:02.6]} 21... Bf6 {[%clk 0:01:33.9]} 22. Re2
{[%clk 0:01:59.7]} 22... Bd7 {[%clk 0:01:32.8]} 23. Rae1 {[%clk 0:01:57.1]}
23... Rxe2 {[%clk 0:01:32.6]} 24. Rxe2 {[%clk 0:01:58]} 24... Qc7 {[%clk
0:01:33.5]} 25. Qf3 {[%clk 0:01:55.9]} 25... Rd8 {[%clk 0:01:27.5]} 26. g4
{[%clk 0:01:52.6]} 26... a5 {[%clk 0:01:26.1]} 27. Nf5 {[%clk 0:01:51.9]} 27...
Bxf5 {[%clk 0:01:16.6]} 28. Qxf5 {[%clk 0:01:49.5]} 28... a4 {[%clk 0:01:14.1]}
29. Nd4 {[%clk 0:01:47.9]} 29... a3 {[%clk 0:01:12.8]} 30. Qd3 {[%clk
0:01:31.5]} 30... axb2 {[%clk 0:01:07.5]} 31. Rxb2 {[%clk 0:01:31.3]} 31... Rc8
{[%clk 0:01:00.9]} 32. Rb3 {[%clk 0:01:30.4]} 32... Re8 {[%clk 0:00:59.5]} 33.
Nf3 {[%clk 0:01:26.9]} 33... Rd8 {[%clk 0:00:45.8]} 34. Qe3 {[%clk 0:01:15.2]}
34... Qa5 {[%clk 0:00:41.2]} 35. Rxb7 {[%clk 0:00:57.2]} 35... Qxa2 {[%clk
0:00:31]} 36. Nd4 {[%clk 0:00:48.5]} 36... Qa6 {[%clk 0:00:26.9]} 37. Rb1 {[%clk
0:00:43.2]} 37... Rc8 {[%clk 0:00:25.9]} 38. Rf1 {[%clk 0:00:35.4]} 38... Qc4
{[%clk 0:00:23.5]} 39. Rf3 {[%clk 0:00:34.8]} 39... Qa6 {[%clk 0:00:20.4]} 40.
Rf1 {[%clk 0:00:29.4]} 40... Qb6 {[%clk 0:00:20.2]} 41. Nf5 {[%clk 0:00:24.6]}
41... Qxe3+ {[%clk 0:00:13.4]} 42. Nxe3 {[%clk 0:00:24.7]} 42... d4 {[%clk
0:00:14.3]} 43. cxd4 {[%clk 0:00:21.5]} 43... Bxd4 {[%clk 0:00:15.2]} 44. Rf3
{[%clk 0:00:21.3]} 44... Rc3 {[%clk 0:00:14.1]} 45. Kf2 {[%clk 0:00:21.4]} 45...
g6 {[%clk 0:00:14.5]} 46. Ke2 {[%clk 0:00:21.1]} 46... Ra3 {[%clk 0:00:15.1]}
47. Nd5 {[%clk 0:00:19.4]} 47... Ra2+ {[%clk 0:00:15.3]} 48. Kd3 {[%clk
0:00:19.1]} 48... Bg7 {[%clk 0:00:14]} 49. Ne3 {[%clk 0:00:17.8]} 49... Bf8
{[%clk 0:00:14.5]} 50. g3 {[%clk 0:00:17.2]} 50... Bc5 {[%clk 0:00:14.5]} 51. h4
{[%clk 0:00:17.1]} 51... Ra3+ {[%clk 0:00:14.4]} 52. Ke2 {[%clk 0:00:17.2]}
52... Kg7 {[%clk 0:00:14.9]} 53. Nc4 {[%clk 0:00:17.1]} 53... Ra4 {[%clk
0:00:14.9]} 54. Nd2 {[%clk 0:00:15.8]} 54... Rxg4 {[%clk 0:00:14.7]} 55. Rd3
{[%clk 0:00:15]} 55... Be7 {[%clk 0:00:14.3]} 56. Kf3 {[%clk 0:00:15.2]} 56...
Ra4 {[%clk 0:00:14.9]} 57. Rd7 {[%clk 0:00:15.2]} 57... Ra3+ {[%clk 0:00:14.8]}
58. Kg2 {[%clk 0:00:14.4]} 58... Bf6 {[%clk 0:00:15.4]} 59. Ne4 {[%clk
0:00:14.4]} 59... Be5 {[%clk 0:00:16.1]} 60. Nd6 {[%clk 0:00:13.9]} 60... Rxg3+
{[%clk 0:00:15.7]} 61. Kf2 {[%clk 0:00:14.3]} 61... Bxd6 {[%clk 0:00:16.6]} 62.
Rxd6 {[%clk 0:00:14.4]} 62... Rg4 {[%clk 0:00:17.1]} 63. h5 {[%clk 0:00:13.7]}
63... g5 {[%clk 0:00:17.7]} 64. Kf3 {[%clk 0:00:13.9]} 64... Rh4 {[%clk
0:00:17.9]} 65. Kg3 {[%clk 0:00:14.4]} 65... Rxh5 {[%clk 0:00:18.4]} 66. Kg4
{[%clk 0:00:14.7]} 66... Rh4+ {[%clk 0:00:18.9]} 67. Kg3 {[%clk 0:00:15.3]}
67... Rf4 {[%clk 0:00:19.8]} 68. Rd5 {[%clk 0:00:15.8]} 68... Rf6 {[%clk
0:00:20.3]} 69. Rb5 {[%clk 0:00:15.7]} 69... Kg6 {[%clk 0:00:20.7]} 70. Kg4
{[%clk 0:00:16.1]} 70... h5+ {[%clk 0:00:21.1]} 71. Kg3 {[%clk 0:00:16.8]} 71...
h4+ {[%clk 0:00:21.8]} 72. Kg4 {[%clk 0:00:16.7]} 72... Rf4+ {[%clk 0:00:22.5]}
73. Kh3 {[%clk 0:00:17.3]} 73... Kh5 {[%clk 0:00:22.7]} 74. Rb8 {[%clk 0:00:17]}
74... Rf3+ {[%clk 0:00:22.8]} 75. Kg2 {[%clk 0:00:17.7]} 75... Kg4 {[%clk
0:00:23]} 76. Rb4+ {[%clk 0:00:17.1]} 76... Rf4 {[%clk 0:00:23.3]} 77. Rb3
{[%clk 0:00:18]} 77... h3+ {[%clk 0:00:23]} 78. Kh2 {[%clk 0:00:17.5]} 78...
Rf2+ {[%clk 0:00:23.3]} 79. Kg1 {[%clk 0:00:17.7]} 79... Ra2 {[%clk 0:00:24]}
80. Rb4+ {[%clk 0:00:16.3]} 80... Kg3 {[%clk 0:00:24.4]} 81. Rb3+ {[%clk
0:00:16.6]} 81... Kh4 {[%clk 0:00:24.9]} 82. Kh1 {[%clk 0:00:17.5]} 82... g4
{[%clk 0:00:25.2]} 83. Rb8 {[%clk 0:00:17.5]} 83... Ra1+ {[%clk 0:00:24.3]} 0-1